[Event "Early-Titled-Tuesday-Blitz-March-05-2024"]
[Site "Chess.com"]
[Date "2024.03.05"]
[Round "5"]
[White "Volodar_Murzin"]
[Black "MagnusCarlsen"]
[Result "1/2-1/2"]
[WhiteElo "2959"]
[BlackElo "3273"]
[TimeControl "180+1"]
[EndTime "8:58:25 PST"]
[Termination "Game drawn by stalemate"]

1. d4 {[%clk 0:03:00.9]} 1... g6 {[%clk 0:02:58.5]} 2. Nf3 {[%clk 0:02:59.6]}
2... Bg7 {[%clk 0:02:58.6]} 3. e4 {[%clk 0:02:59.7]} 3... d6 {[%clk 0:02:56.9]}
4. Bc4 {[%clk 0:03:00]} 4... Nc6 {[%clk 0:02:54.5]} 5. h3 {[%clk 0:02:58.5]}
5... Nf6 {[%clk 0:02:48.9]} 6. Qe2 {[%clk 0:02:58.5]} 6... e5 {[%clk 0:02:48.1]}
7. dxe5 {[%clk 0:02:57]} 7... Nxe5 {[%clk 0:02:47.9]} 8. Nxe5 {[%clk 0:02:55.5]}
8... dxe5 {[%clk 0:02:48.8]} 9. O-O {[%clk 0:02:55.7]} 9... O-O {[%clk
0:02:49.4]} 10. Nd2 {[%clk 0:02:55.5]} 10... Qe7 {[%clk 0:02:44.4]} 11. Nf3
{[%clk 0:02:54.9]} 11... Bd7 {[%clk 0:02:45]} 12. Bg5 {[%clk 0:02:48.3]} 12...
h6 {[%clk 0:02:45.1]} 13. Bxf6 {[%clk 0:02:47.2]} 13... Bxf6 {[%clk 0:02:44.3]}
14. Rfd1 {[%clk 0:02:47.9]} 14... Rfd8 {[%clk 0:02:43.7]} 15. Rd2 {[%clk
0:02:39]} 15... Kg7 {[%clk 0:02:43.1]} 16. Rad1 {[%clk 0:02:39.2]} 16... Be8
{[%clk 0:02:42.2]} 17. c3 {[%clk 0:02:32]} 17... Rxd2 {[%clk 0:02:40.4]} 18.
Rxd2 {[%clk 0:02:32.9]} 18... a5 {[%clk 0:02:40.8]} 19. Bb5 {[%clk 0:02:16.1]}
19... c6 {[%clk 0:02:39.3]} 20. Ba4 {[%clk 0:02:16.4]} 20... b5 {[%clk
0:02:39.2]} 21. Bc2 {[%clk 0:02:16.9]} 21... a4 {[%clk 0:02:37.5]} 22. a3 {[%clk
0:02:10.6]} 22... Bd7 {[%clk 0:02:37.3]} 23. Qd3 {[%clk 0:02:02.8]} 23... Be6
{[%clk 0:02:36.6]} 24. Qd6 {[%clk 0:01:59.2]} 24... Qxd6 {[%clk 0:02:36.8]} 25.
Rxd6 {[%clk 0:01:59.2]} 25... Rc8 {[%clk 0:02:37.4]} 26. Ne1 {[%clk 0:01:47.8]}
26... Be7 {[%clk 0:02:31.4]} 27. Rd1 {[%clk 0:01:47.5]} 27... f5 {[%clk
0:02:31.1]} 28. Nd3 {[%clk 0:01:43.7]} 28... Kf7 {[%clk 0:02:26.6]} 29. Nxe5+
{[%clk 0:01:41.6]} 29... Kf6 {[%clk 0:02:26.1]} 30. Nd7+ {[%clk 0:01:36.5]}
30... Kg7 {[%clk 0:02:14.8]} 31. exf5 {[%clk 0:01:30.4]} 31... gxf5 {[%clk
0:02:15.7]} 32. Ne5 {[%clk 0:00:56.1]} 32... c5 {[%clk 0:02:15.2]} 33. Nd3
{[%clk 0:00:44.3]} 33... Bd6 {[%clk 0:02:10.9]} 34. g3 {[%clk 0:00:42.5]} 34...
Kf6 {[%clk 0:02:10.7]} 35. Nf4 {[%clk 0:00:40.8]} 35... Bxf4 {[%clk 0:02:10.7]}
36. gxf4 {[%clk 0:00:41.7]} 36... Rg8+ {[%clk 0:01:58.3]} 37. Kh2 {[%clk
0:00:40.4]} 37... Rb8 {[%clk 0:01:57.3]} 38. Kg3 {[%clk 0:00:33.7]} 38... Ke7
{[%clk 0:01:53.1]} 39. Kf3 {[%clk 0:00:31.1]} 39... Bd7 {[%clk 0:01:36.5]} 40.
Ke3 {[%clk 0:00:28.9]} 40... b4 {[%clk 0:01:36.2]} 41. Rd5 {[%clk 0:00:16.5]}
41... bxa3 {[%clk 0:01:35.6]} 42. bxa3 {[%clk 0:00:17.4]} 42... Rb2 {[%clk
0:01:35.7]} 43. Bxf5 {[%clk 0:00:17.7]} 43... Bxf5 {[%clk 0:01:30.1]} 44. Rxf5
{[%clk 0:00:18.6]} 44... Kd6 {[%clk 0:01:30.1]} 45. Kd3 {[%clk 0:00:19.1]} 45...
Rxf2 {[%clk 0:01:28.5]} 46. Rf6+ {[%clk 0:00:19.6]} 46... Ke7 {[%clk 0:01:28.7]}
47. Rxh6 {[%clk 0:00:19.3]} 47... Rxf4 {[%clk 0:01:28]} 48. Rc6 {[%clk
0:00:19.6]} 48... Rf1 {[%clk 0:01:20.5]} 49. Ra6 {[%clk 0:00:14.1]} 49... Rf4
{[%clk 0:01:19.7]} 50. Rc6 {[%clk 0:00:13]} 50... Rf1 {[%clk 0:01:16.3]} 51.
Rxc5 {[%clk 0:00:12.1]} 51... Ra1 {[%clk 0:01:16.2]} 52. Kc4 {[%clk 0:00:09.5]}
52... Rxa3 {[%clk 0:01:16.1]} 53. Kb4 {[%clk 0:00:10.2]} 53... Ra1 {[%clk
0:01:16.3]} 54. h4 {[%clk 0:00:10.7]} 54... a3 {[%clk 0:01:15]} 55. h5 {[%clk
0:00:09.8]} 55... Kd6 {[%clk 0:01:11.1]} 56. Ra5 {[%clk 0:00:08.3]} 56... a2
{[%clk 0:01:08.3]} 57. Kc4 {[%clk 0:00:05.7]} 57... Rh1 {[%clk 0:01:06.3]} 58.
Ra6+ {[%clk 0:00:06.2]} 58... Kc7 {[%clk 0:01:05.9]} 59. Rxa2 {[%clk 0:00:07.1]}
59... Rh4+ {[%clk 0:01:05.2]} 60. Kb3 {[%clk 0:00:06.8]} 60... Rxh5 {[%clk
0:01:06.1]} 61. Rd2 {[%clk 0:00:06.6]} 61... Kc6 {[%clk 0:01:05.9]} 62. Rd4
{[%clk 0:00:07.3]} 62... Rb5+ {[%clk 0:01:05.4]} 63. Rb4 {[%clk 0:00:07.6]}
63... Kc5 {[%clk 0:01:05.3]} 64. Rxb5+ {[%clk 0:00:07.7]} 64... Kxb5 {[%clk
0:01:06.2]} 65. c4+ {[%clk 0:00:08.5]} 65... Kc5 {[%clk 0:01:06.4]} 66. Kc3
{[%clk 0:00:09.1]} 66... Kc6 {[%clk 0:01:07.1]} 67. Kb4 {[%clk 0:00:10]} 67...
Kb6 {[%clk 0:01:07.5]} 68. c5+ {[%clk 0:00:10.9]} 68... Kc6 {[%clk 0:01:07.9]}
69. Kc4 {[%clk 0:00:11.8]} 69... Kc7 {[%clk 0:01:08.5]} 70. Kb5 {[%clk
0:00:12.7]} 70... Kb7 {[%clk 0:01:08.9]} 71. c6+ {[%clk 0:00:13.6]} 71... Kc7
{[%clk 0:01:09.4]} 72. Kc5 {[%clk 0:00:14.3]} 72... Kc8 {[%clk 0:01:10.1]} 73.
Kd6 {[%clk 0:00:14.9]} 73... Kd8 {[%clk 0:01:10.6]} 74. c7+ {[%clk 0:00:15.7]}
74... Kc8 {[%clk 0:01:11.1]} 75. Kc6 {[%clk 0:00:16.6]} 1/2-1/2

[Event "Early-Titled-Tuesday-Blitz-March-05-2024"]
[Site "Chess.com"]
[Date "2024.03.05"]
[Round "5"]
[White "MITerryble"]
[Black "Kobalia"]
[Result "1-0"]
[WhiteElo "3032"]
[BlackElo "2796"]
[TimeControl "180+1"]
[EndTime "8:58:25 PST"]
[Termination "MITerryble won on time"]

1. b3 {[%clk 0:03:00.9]} 1... e5 {[%clk 0:02:59.3]} 2. Bb2 {[%clk 0:03:01]} 2...
Nc6 {[%clk 0:02:59.6]} 3. e3 {[%clk 0:03:01.1]} 3... g6 {[%clk 0:02:59.8]} 4.
Bb5 {[%clk 0:02:58.3]} 4... Bg7 {[%clk 0:02:59.2]} 5. Nf3 {[%clk 0:02:57.6]}
5... Nge7 {[%clk 0:02:59]} 6. d4 {[%clk 0:02:56.7]} 6... exd4 {[%clk 0:02:58.5]}
7. Nxd4 {[%clk 0:02:56.8]} 7... O-O {[%clk 0:02:50.4]} 8. Nxc6 {[%clk
0:02:46.2]} 8... dxc6 {[%clk 0:02:42.9]} 9. Qxd8 {[%clk 0:02:45.3]} 9... Rxd8
{[%clk 0:02:42.4]} 10. Bxg7 {[%clk 0:02:46.2]} 10... Kxg7 {[%clk 0:02:43.1]} 11.
Bd3 {[%clk 0:02:46.4]} 11... Bf5 {[%clk 0:02:40.6]} 12. Bxf5 {[%clk 0:02:43.1]}
12... Nxf5 {[%clk 0:02:40.2]} 13. Ke2 {[%clk 0:02:43.5]} 13... a5 {[%clk
0:02:39.2]} 14. a3 {[%clk 0:02:35.3]} 14... a4 {[%clk 0:02:34.5]} 15. b4 {[%clk
0:02:35.4]} 15... c5 {[%clk 0:02:34.4]} 16. b5 {[%clk 0:02:35.4]} 16... Nd6
{[%clk 0:02:31.3]} 17. Nc3 {[%clk 0:02:28.7]} 17... Nc4 {[%clk 0:02:31.3]} 18.
Rhd1 {[%clk 0:02:23.8]} 18... Rxd1 {[%clk 0:02:28.6]} 19. Kxd1 {[%clk
0:02:20.4]} 19... Rd8+ {[%clk 0:02:26.8]} 20. Kc1 {[%clk 0:02:20.6]} 20... Rd2
{[%clk 0:02:06.3]} 21. Ne4 {[%clk 0:02:17.5]} 21... Rd5 {[%clk 0:02:05.5]} 22.
Nc3 {[%clk 0:02:10.3]} 22... Rf5 {[%clk 0:02:00.9]} 23. Ne4 {[%clk 0:02:02.1]}
23... Re5 {[%clk 0:01:44.1]} 24. Nc3 {[%clk 0:02:02.2]} 24... Rf5 {[%clk
0:01:35.5]} 25. Ne4 {[%clk 0:02:02.3]} 25... Re5 {[%clk 0:01:28.7]} 26. Nd2
{[%clk 0:01:59.8]} 26... Nd6 {[%clk 0:01:22.6]} 27. c4 {[%clk 0:01:34.1]} 27...
g5 {[%clk 0:01:09.5]} 28. Kc2 {[%clk 0:01:23.7]} 28... g4 {[%clk 0:01:09.4]} 29.
Rh1 {[%clk 0:01:20.7]} 29... Rf5 {[%clk 0:01:09]} 30. Rf1 {[%clk 0:01:14.4]}
30... Rh5 {[%clk 0:01:08.6]} 31. Rh1 {[%clk 0:01:13.8]} 31... Rf5 {[%clk
0:01:08.2]} 32. f3 {[%clk 0:01:13.9]} 32... gxf3 {[%clk 0:01:07.9]} 33. gxf3
{[%clk 0:01:14.3]} 33... Rg5 {[%clk 0:01:07.8]} 34. Kd3 {[%clk 0:01:01.8]} 34...
Rg2 {[%clk 0:01:07.2]} 35. h4 {[%clk 0:01:01.6]} 35... h5 {[%clk 0:01:06.2]} 36.
b6 {[%clk 0:00:46.2]} 36... cxb6 {[%clk 0:01:03]} 37. Rb1 {[%clk 0:00:46.3]}
37... Nf5 {[%clk 0:01:02.9]} 38. Rxb6 {[%clk 0:00:43.2]} 38... Nxh4 {[%clk
0:01:02.8]} 39. Rb5 {[%clk 0:00:31.3]} 39... b6 {[%clk 0:00:56.6]} 40. Rxb6
{[%clk 0:00:30.8]} 40... Ng6 {[%clk 0:00:56.8]} 41. f4 {[%clk 0:00:28.4]} 41...
h4 {[%clk 0:00:55.3]} 42. Rb1 {[%clk 0:00:28.9]} 42... Rg3 {[%clk 0:00:51.4]}
43. Ke4 {[%clk 0:00:26.7]} 43... f5+ {[%clk 0:00:36.9]} 44. Kxf5 {[%clk
0:00:24.2]} 44... Rxe3 {[%clk 0:00:37]} 45. Rb7+ {[%clk 0:00:24]} 45... Kh6
{[%clk 0:00:34.9]} 46. Rb6 {[%clk 0:00:23.5]} 46... Rg3 {[%clk 0:00:35.1]} 47.
Ne4 {[%clk 0:00:22.9]} 47... Rg2 {[%clk 0:00:33.5]} 48. Ng5 {[%clk 0:00:23]} 1-0

[Event "Early-Titled-Tuesday-Blitz-March-05-2024"]
[Site "Chess.com"]
[Date "2024.03.05"]
[Round "5"]
[White "Preobrazhenska_D2011"]
[Black "Talcrifice"]
[Result "0-1"]
[WhiteElo "2438"]
[BlackElo "2583"]
[TimeControl "180+1"]
[EndTime "8:58:26 PST"]
[Termination "Talcrifice won by checkmate"]

1. e4 {[%clk 0:02:55.6]} 1... e5 {[%clk 0:02:59.3]} 2. Nf3 {[%clk 0:02:54.8]}
2... Nc6 {[%clk 0:02:59.8]} 3. Bb5 {[%clk 0:02:55.2]} 3... a6 {[%clk 0:02:59.7]}
4. Ba4 {[%clk 0:02:54.9]} 4... Nf6 {[%clk 0:02:59.6]} 5. O-O {[%clk 0:02:55]}
5... b5 {[%clk 0:02:59]} 6. Bb3 {[%clk 0:02:54.8]} 6... Bc5 {[%clk 0:02:59.5]}
7. Nc3 {[%clk 0:02:53.8]} 7... d6 {[%clk 0:02:57.7]} 8. Nd5 {[%clk 0:02:52]}
8... h6 {[%clk 0:02:51.2]} 9. d3 {[%clk 0:02:35.5]} 9... Be6 {[%clk 0:02:45.6]}
10. c3 {[%clk 0:02:33.7]} 10... Bxd5 {[%clk 0:02:39.2]} 11. exd5 {[%clk
0:02:33.3]} 11... Ne7 {[%clk 0:02:39.6]} 12. d4 {[%clk 0:02:32.8]} 12... exd4
{[%clk 0:02:38.5]} 13. Nxd4 {[%clk 0:02:28.8]} 13... O-O {[%clk 0:02:38.2]} 14.
Re1 {[%clk 0:01:53.2]} 14... Ng6 {[%clk 0:02:26.6]} 15. h3 {[%clk 0:01:30.6]}
15... Qd7 {[%clk 0:02:24.7]} 16. Be3 {[%clk 0:01:12.7]} 16... Rfe8 {[%clk
0:02:19.9]} 17. Qd2 {[%clk 0:00:53.5]} 17... Re5 {[%clk 0:02:05.4]} 18. Nc6
{[%clk 0:00:40.4]} 18... Bxe3 {[%clk 0:01:47.5]} 19. Rxe3 {[%clk 0:00:41]} 19...
Rxe3 {[%clk 0:01:45.3]} 20. Qxe3 {[%clk 0:00:40.8]} 20... Re8 {[%clk 0:01:45.5]}
21. Qd4 {[%clk 0:00:33.2]} 21... Re4 {[%clk 0:01:42.1]} 22. Qd2 {[%clk
0:00:29.3]} 22... Qe8 {[%clk 0:01:37.7]} 23. Nd4 {[%clk 0:00:19.3]} 23... Ne5
{[%clk 0:01:26.3]} 24. Bc2 {[%clk 0:00:14.6]} 24... Nc4 {[%clk 0:01:26.4]} 25.
Qc1 {[%clk 0:00:08.6]} 25... Re5 {[%clk 0:01:23.8]} 26. b3 {[%clk 0:00:09]}
26... Nb6 {[%clk 0:01:23.2]} 27. c4 {[%clk 0:00:05.3]} 27... bxc4 {[%clk
0:01:22.6]} 28. bxc4 {[%clk 0:00:06.2]} 28... Nxc4 {[%clk 0:01:18.3]} 29. Bd3
{[%clk 0:00:06.6]} 29... Nb6 {[%clk 0:01:18.3]} 30. Nc6 {[%clk 0:00:04.3]} 30...
Rxd5 {[%clk 0:01:13.4]} 31. Bf1 {[%clk 0:00:03.3]} 31... Rc5 {[%clk 0:01:13.4]}
32. Ne7+ {[%clk 0:00:02.9]} 32... Qxe7 {[%clk 0:01:12.9]} 33. Qf4 {[%clk
0:00:03.5]} 33... Re5 {[%clk 0:01:10.5]} 34. Qd2 {[%clk 0:00:03.7]} 34... g5
{[%clk 0:01:06.3]} 35. Rb1 {[%clk 0:00:04.1]} 35... Kg7 {[%clk 0:01:06.1]} 36.
Qd3 {[%clk 0:00:04.3]} 36... Nbd5 {[%clk 0:01:05.1]} 37. Qd2 {[%clk 0:00:04.5]}
37... Nf4 {[%clk 0:01:04.8]} 38. g3 {[%clk 0:00:04.6]} 38... Ng6 {[%clk
0:01:02.5]} 39. Bd3 {[%clk 0:00:04]} 39... Rd5 {[%clk 0:01:00.2]} 40. Qc2 {[%clk
0:00:04]} 40... Ne5 {[%clk 0:00:54.2]} 41. Be2 {[%clk 0:00:04.1]} 41... Rc5
{[%clk 0:00:54.2]} 42. Qd2 {[%clk 0:00:03.9]} 42... Qe6 {[%clk 0:00:52.2]} 43.
Re1 {[%clk 0:00:03.5]} 43... Qxh3 {[%clk 0:00:50.7]} 44. Bf1 {[%clk 0:00:03.4]}
44... Qf5 {[%clk 0:00:49.4]} 45. Bg2 {[%clk 0:00:03.6]} 45... Rc2 {[%clk
0:00:48.7]} 46. Qd4 {[%clk 0:00:03.4]} 46... Rxa2 {[%clk 0:00:46.8]} 47. Rc1
{[%clk 0:00:02.9]} 47... c5 {[%clk 0:00:44.5]} 48. Qe3 {[%clk 0:00:03]} 48...
Nfg4 {[%clk 0:00:43.3]} 49. Qe4 {[%clk 0:00:02.8]} 49... Qxf2+ {[%clk
0:00:42.4]} 50. Kh1 {[%clk 0:00:03.7]} 50... Re2 {[%clk 0:00:37.2]} 51. Qd5
{[%clk 0:00:03.5]} 51... Re1+ {[%clk 0:00:36.3]} 52. Rxe1 {[%clk 0:00:03.6]}
52... Qxe1+ {[%clk 0:00:37.2]} 53. Bf1 {[%clk 0:00:03]} 53... Qxf1# {[%clk
0:00:37.7]} 0-1

[Event "Early-Titled-Tuesday-Blitz-March-05-2024"]
[Site "Chess.com"]
[Date "2024.03.05"]
[Round "5"]
[White "Grandelicious"]
[Black "Mikhail_Golubev"]
[Result "0-1"]
[WhiteElo "2878"]
[BlackElo "2668"]
[TimeControl "180+1"]
[EndTime "8:58:28 PST"]
[Termination "Mikhail_Golubev won on time"]

1. Nf3 {[%clk 0:03:00.9]} 1... d6 {[%clk 0:02:59.3]} 2. g3 {[%clk 0:02:59.6]}
2... g6 {[%clk 0:02:57.4]} 3. Bg2 {[%clk 0:02:59.8]} 3... Bg7 {[%clk 0:02:58]}
4. O-O {[%clk 0:03:00.5]} 4... e5 {[%clk 0:02:58.1]} 5. d4 {[%clk 0:02:54.8]}
5... e4 {[%clk 0:02:57.9]} 6. Nfd2 {[%clk 0:02:54.4]} 6... d5 {[%clk 0:02:57.2]}
7. c4 {[%clk 0:02:53.6]} 7... c6 {[%clk 0:02:53.7]} 8. Nc3 {[%clk 0:02:50.1]}
8... Nf6 {[%clk 0:02:51.9]} 9. cxd5 {[%clk 0:02:45.9]} 9... cxd5 {[%clk
0:02:52]} 10. Nb3 {[%clk 0:02:46.6]} 10... O-O {[%clk 0:02:48.3]} 11. Bg5 {[%clk
0:02:46.3]} 11... h6 {[%clk 0:02:47.7]} 12. Bxf6 {[%clk 0:02:46.3]} 12... Bxf6
{[%clk 0:02:47.3]} 13. e3 {[%clk 0:02:47]} 13... Nc6 {[%clk 0:02:42.9]} 14. Rc1
{[%clk 0:02:39.4]} 14... Bg7 {[%clk 0:02:32.9]} 15. Nd2 {[%clk 0:02:29.7]} 15...
Be6 {[%clk 0:02:23]} 16. Na4 {[%clk 0:02:28.5]} 16... Qe7 {[%clk 0:02:09.8]} 17.
Nc5 {[%clk 0:02:26.9]} 17... Rad8 {[%clk 0:02:04.2]} 18. Nxe6 {[%clk 0:02:20.2]}
18... fxe6 {[%clk 0:02:04.5]} 19. Qa4 {[%clk 0:02:15.3]} 19... e5 {[%clk
0:02:00]} 20. dxe5 {[%clk 0:02:12.5]} 20... Nxe5 {[%clk 0:01:59.2]} 21. Qxa7
{[%clk 0:02:10.4]} 21... Nd3 {[%clk 0:01:55.5]} 22. Rc2 {[%clk 0:02:07.6]} 22...
Rf6 {[%clk 0:01:33.6]} 23. Qa4 {[%clk 0:01:56.6]} 23... Rdf8 {[%clk 0:01:13.8]}
24. Nb3 {[%clk 0:01:35.6]} 24... Qf7 {[%clk 0:00:40]} 25. Qb5 {[%clk 0:01:19.8]}
25... Nxf2 {[%clk 0:00:39.1]} 26. Qe2 {[%clk 0:01:18.2]} 26... Nd3 {[%clk
0:00:34.6]} 27. Rxf6 {[%clk 0:01:10.5]} 27... Qxf6 {[%clk 0:00:35]} 28. Nc5
{[%clk 0:01:06.1]} 28... Nxc5 {[%clk 0:00:23.3]} 29. Rxc5 {[%clk 0:01:07]} 29...
d4 {[%clk 0:00:22.6]} 30. Bxe4 {[%clk 0:00:58.2]} 30... dxe3 {[%clk 0:00:22.7]}
31. Rc2 {[%clk 0:00:53]} 31... Qd4 {[%clk 0:00:20.5]} 32. Bxg6 {[%clk
0:00:33.8]} 32... Rf2 {[%clk 0:00:19.6]} 33. Rc8+ {[%clk 0:00:23.1]} 33... Bf8
{[%clk 0:00:16.6]} 34. Qc4+ {[%clk 0:00:20.7]} 34... Qxc4 {[%clk 0:00:16.5]} 35.
Rxc4 {[%clk 0:00:21.6]} 35... Rxb2 {[%clk 0:00:16.7]} 36. Bh5 {[%clk 0:00:09.4]}
36... e2 {[%clk 0:00:13.5]} 37. Kf2 {[%clk 0:00:06.5]} 37... e1=Q+ {[%clk
0:00:09.1]} 38. Kxe1 {[%clk 0:00:06.4]} 38... Rxh2 {[%clk 0:00:09.5]} 39. Bf3
{[%clk 0:00:03.9]} 39... Rxa2 {[%clk 0:00:08.4]} 40. Bxb7 {[%clk 0:00:03.2]}
40... Ra1+ {[%clk 0:00:07.2]} 41. Ke2 {[%clk 0:00:03.3]} 41... Ra7 {[%clk
0:00:06.3]} 42. Rc7 {[%clk 0:00:02.1]} 42... Kh8 {[%clk 0:00:05.7]} 0-1

[Event "Early-Titled-Tuesday-Blitz-March-05-2024"]
[Site "Chess.com"]
[Date "2024.03.05"]
[Round "5"]
[White "Szparu"]
[Black "jaskol95"]
[Result "1-0"]
[WhiteElo "2780"]
[BlackElo "2592"]
[TimeControl "180+1"]
[EndTime "8:58:29 PST"]
[Termination "Szparu won by checkmate"]

1. e4 {[%clk 0:03:00.9]} 1... d5 {[%clk 0:02:58]} 2. exd5 {[%clk 0:03:01]} 2...
Nf6 {[%clk 0:02:58.5]} 3. Bb5+ {[%clk 0:03:00.1]} 3... Nbd7 {[%clk 0:02:58.4]}
4. d4 {[%clk 0:02:59.1]} 4... a6 {[%clk 0:02:56.6]} 5. Be2 {[%clk 0:02:59]} 5...
Nxd5 {[%clk 0:02:56.2]} 6. Nf3 {[%clk 0:02:59.1]} 6... e6 {[%clk 0:02:55.6]} 7.
O-O {[%clk 0:02:59]} 7... Be7 {[%clk 0:02:53.7]} 8. c4 {[%clk 0:02:59]} 8...
N5f6 {[%clk 0:02:53.5]} 9. Nc3 {[%clk 0:02:59.3]} 9... b6 {[%clk 0:02:53.8]} 10.
h3 {[%clk 0:02:55.9]} 10... Bb7 {[%clk 0:02:54]} 11. Bf4 {[%clk 0:02:50.5]}
11... Bd6 {[%clk 0:02:45.7]} 12. Bg5 {[%clk 0:02:43.7]} 12... h6 {[%clk
0:02:45.3]} 13. Bh4 {[%clk 0:02:42]} 13... O-O {[%clk 0:02:38]} 14. Qc2 {[%clk
0:02:37.3]} 14... c5 {[%clk 0:02:18.2]} 15. Rad1 {[%clk 0:02:37.4]} 15... Qc7
{[%clk 0:02:06]} 16. dxc5 {[%clk 0:02:31.2]} 16... Bxc5 {[%clk 0:02:02.5]} 17.
Bg3 {[%clk 0:02:25.6]} 17... Qc6 {[%clk 0:02:00.6]} 18. a3 {[%clk 0:02:23.7]}
18... a5 {[%clk 0:01:32.7]} 19. Rd2 {[%clk 0:02:23.5]} 19... Rfe8 {[%clk
0:01:17.3]} 20. Rfd1 {[%clk 0:02:23.1]} 20... Nf8 {[%clk 0:01:18]} 21. Bf1
{[%clk 0:02:22.3]} 21... Ng6 {[%clk 0:01:13.7]} 22. Nd4 {[%clk 0:02:20.8]} 22...
Bxd4 {[%clk 0:01:06.1]} 23. Rxd4 {[%clk 0:02:21.7]} 23... Rac8 {[%clk
0:00:36.6]} 24. Rd6 {[%clk 0:02:21.9]} 24... Qc5 {[%clk 0:00:32]} 25. Na4 {[%clk
0:02:20.9]} 25... Qg5 {[%clk 0:00:32.5]} 26. Nxb6 {[%clk 0:02:16.6]} 26... Rc5
{[%clk 0:00:18.4]} 27. b4 {[%clk 0:02:13.5]} 27... Rf5 {[%clk 0:00:16.6]} 28.
Qc1 {[%clk 0:02:06.3]} 28... Qh5 {[%clk 0:00:14.7]} 29. Rd8 {[%clk 0:01:52.9]}
29... Rxd8 {[%clk 0:00:13.8]} 30. Rxd8+ {[%clk 0:01:53.8]} 30... Kh7 {[%clk
0:00:14.6]} 31. c5 {[%clk 0:01:50.4]} 31... Ne4 {[%clk 0:00:06.1]} 32. c6 {[%clk
0:01:50.8]} 32... Nxg3 {[%clk 0:00:06.3]} 33. fxg3 {[%clk 0:01:51.7]} 33... Bxc6
{[%clk 0:00:06.2]} 34. Qxc6 {[%clk 0:01:46.7]} 34... Ne5 {[%clk 0:00:03.4]} 35.
Qe4 {[%clk 0:01:35.6]} 35... Qg5 {[%clk 0:00:03.8]} 36. Rd3 {[%clk 0:00:42.1]}
36... g6 {[%clk 0:00:03.3]} 37. Re3 {[%clk 0:00:29.6]} 37... Rxf1+ {[%clk
0:00:02.7]} 38. Kxf1 {[%clk 0:00:29.6]} 38... Nd7 {[%clk 0:00:02.3]} 39. Nxd7
{[%clk 0:00:29.1]} 39... Qb5+ {[%clk 0:00:02.4]} 40. Qd3 {[%clk 0:00:29]} 40...
Qc6 {[%clk 0:00:02.8]} 41. Nf6+ {[%clk 0:00:28.4]} 41... Kg7 {[%clk 0:00:03]}
42. Qc3 {[%clk 0:00:28.4]} 42... Qb7 {[%clk 0:00:01.9]} 43. Nh5+ {[%clk
0:00:28]} 43... Kf8 {[%clk 0:00:02.1]} 44. Nf6 {[%clk 0:00:21.8]} 44... Ke7
{[%clk 0:00:02]} 45. Rd3 {[%clk 0:00:19.2]} 45... axb4 {[%clk 0:00:02]} 46. axb4
{[%clk 0:00:18.9]} 46... Kf8 {[%clk 0:00:02]} 47. Rd8+ {[%clk 0:00:18.3]} 47...
Kg7 {[%clk 0:00:02.7]} 48. Nh5+ {[%clk 0:00:18.2]} 48... Kh7 {[%clk 0:00:03]}
49. Rh8# {[%clk 0:00:18.4]} 1-0

[Event "Early-Titled-Tuesday-Blitz-March-05-2024"]
[Site "Chess.com"]
[Date "2024.03.05"]
[Round "5"]
[White "laziestwin"]
[Black "Witty_Alien"]
[Result "1-0"]
[WhiteElo "2577"]
[BlackElo "2318"]
[TimeControl "180+1"]
[EndTime "8:58:30 PST"]
[Termination "laziestwin won by resignation"]

1. d4 {[%clk 0:02:58.7]} 1... e5 {[%clk 0:02:59.4]} 2. dxe5 {[%clk 0:02:57.5]}
2... d6 {[%clk 0:02:50]} 3. exd6 {[%clk 0:02:57.4]} 3... Bxd6 {[%clk 0:02:50.9]}
4. Nf3 {[%clk 0:02:53.3]} 4... Nf6 {[%clk 0:02:48.3]} 5. g3 {[%clk 0:02:37.4]}
5... Bg4 {[%clk 0:02:45.8]} 6. Bg2 {[%clk 0:02:36.6]} 6... Nc6 {[%clk
0:02:45.6]} 7. O-O {[%clk 0:02:36]} 7... Qd7 {[%clk 0:02:45.9]} 8. Bf4 {[%clk
0:02:23]} 8... O-O-O {[%clk 0:02:30.6]} 9. Bxd6 {[%clk 0:02:20.9]} 9... Qf5
{[%clk 0:02:18.4]} 10. Nd4 {[%clk 0:01:54.9]} 10... Qh5 {[%clk 0:01:07]} 11.
Nxc6 {[%clk 0:00:33.8]} 11... Rxd6 {[%clk 0:01:06.7]} 12. Nxa7+ {[%clk
0:00:19.7]} 12... Kb8 {[%clk 0:01:06.9]} 13. Qe1 {[%clk 0:00:19.9]} 13... Kxa7
{[%clk 0:00:51.6]} 14. Nc3 {[%clk 0:00:15.5]} 14... Re6 {[%clk 0:00:44]} 15. f3
{[%clk 0:00:12.3]} 15... Qc5+ {[%clk 0:00:35.5]} 16. Qf2 {[%clk 0:00:09.4]}
16... Qxf2+ {[%clk 0:00:34.3]} 17. Kxf2 {[%clk 0:00:09.9]} 17... Bf5 {[%clk
0:00:35.2]} 18. e4 {[%clk 0:00:09.8]} 18... Bg6 {[%clk 0:00:35.6]} 19. Rfd1
{[%clk 0:00:07.4]} 19... h5 {[%clk 0:00:35.9]} 20. h4 {[%clk 0:00:06.7]} 20...
c6 {[%clk 0:00:33.2]} 21. Rd4 {[%clk 0:00:06.2]} 21... Ne8 {[%clk 0:00:27.7]}
22. Rad1 {[%clk 0:00:06.5]} 22... Nc7 {[%clk 0:00:27.8]} 23. Rd7 {[%clk
0:00:06.4]} 23... Rc8 {[%clk 0:00:26.3]} 24. a4 {[%clk 0:00:05.2]} 24... f5
{[%clk 0:00:26.1]} 25. Rxg7 {[%clk 0:00:04]} 25... fxe4 {[%clk 0:00:25.9]} 26.
fxe4 {[%clk 0:00:04.1]} 26... Rf8+ {[%clk 0:00:25.7]} 27. Kg1 {[%clk 0:00:04.2]}
27... Ref6 {[%clk 0:00:26.4]} 28. e5 {[%clk 0:00:03.1]} 28... Re6 {[%clk
0:00:26.8]} 29. Ne4 {[%clk 0:00:03]} 29... Bxe4 {[%clk 0:00:26.5]} 30. Bxe4
{[%clk 0:00:03.9]} 30... Ne8 {[%clk 0:00:26]} 31. Rg5 {[%clk 0:00:02.9]} 31...
Nf6 {[%clk 0:00:20.1]} 32. exf6 {[%clk 0:00:02.5]} 32... Rxe4 {[%clk 0:00:20.9]}
33. Rf1 {[%clk 0:00:02.6]} 33... Re6 {[%clk 0:00:10.5]} 34. f7 {[%clk 0:00:03]}
34... Re7 {[%clk 0:00:11.1]} 35. Rgf5 {[%clk 0:00:03.4]} 35... Ka6 {[%clk
0:00:11.4]} 36. Kg2 {[%clk 0:00:03.9]} 36... b6 {[%clk 0:00:10.3]} 37. b4 {[%clk
0:00:04.4]} 37... c5 {[%clk 0:00:09.6]} 38. bxc5 {[%clk 0:00:04.1]} 38... bxc5
{[%clk 0:00:10.5]} 39. Rxc5 {[%clk 0:00:03.8]} 39... Rfxf7 {[%clk 0:00:10.8]}
40. Rxf7 {[%clk 0:00:04.3]} 40... Rxf7 {[%clk 0:00:11.7]} 41. Rxh5 {[%clk
0:00:04.4]} 41... Re7 {[%clk 0:00:10.8]} 42. Rg5 {[%clk 0:00:04.7]} 42... Re2+
{[%clk 0:00:09.8]} 43. Kh3 {[%clk 0:00:05.6]} 43... Rxc2 {[%clk 0:00:10.7]} 44.
h5 {[%clk 0:00:06.3]} 44... Rc5 {[%clk 0:00:09.8]} 45. Rxc5 {[%clk 0:00:05.7]}
1-0